bitfinex/quotes_ETHUSD_20250813
["timestamp","ask_amount","ask_price","bid_price","bid_amount"]
[1755094014386,0.002,4677.9,4677.5,5.86855568]
[1755094014998,0.002,4677.9,4677.6,3.662]
[1755094015337,0.002,4677.9,4677.6,4.45540113]
[1755094015623,0.002,4677.9,4677.5,2.20655568]
[1755094015624,0.002,4677.9,4677.7,3.662]
[1755094015793,0.002,4677.9,4677.8,0.58693557]
[1755094015994,0.002,4677.9,4677.8,1.07851314]
[1755094016218,0.002,4677.9,4677.8,1.05713557]
[1755094017046,0.002,4677.9,4677.8,0.58693557]
[1755094017196,0.02,4678.4,4677.8,1.40171427]
[1755094017544,0.02,4678.4,4678.2,18.26748682]
[1755094017700,0.02,4678.4,4678.3,3.661]
[1755094018021,0.02,4678.4,4677.9,0.75865192]
[1755094018241,0.02,4678.4,4677.5,2.22793462]
[1755094018723,0.02,4678.4,4677.6,3.661]
[1755094019022,0.02,4678.4,4677.5,2.20735568]
[1755094019206,0.02,4678.4,4677.6,3.661]
[1755094019407,0.02,4678.4,4677.5,2.20735568]
[1755094019595,2.556,4678.3,4677.6,3.661]
[1755094020017,0.4396,4678.2,4677.7,3.661]
[1755094020218,2.1164,4678.2,4677.7,3.661]
[1755094020499,0.02,4678.4,4677.5,0.0008]
[1755094020500,2.556,4678.1,4677.5,0.0008]
[1755094020694,2.556,4678.1,4678.0,0.1072]
[1755094020901,2.556,4678.1,4677.5,0.0008]
[1755094021134,0.1072,4677.8,4676.8,0.1072]
[1755094021330,2.75223904,4677.7,4676.8,0.1072]
[1755094021636,0.1072,4677.1,4676.9,2.662]
[1755094021851,0.02,4678.4,4676.9,2.662]
[1755094021852,2.75223904,4677.0,4676.9,2.662]
[1755094022141,2.75223904,4677.0,4676.9,5.119]
[1755094022443,2.85863904,4677.0,4676.9,3.66]
[1755094022831,2.85863904,4677.0,4676.3,0.640294]
[1755094023151,0.1072,4676.5,4676.4,3.661]
[1755094023640,2.556,4676.5,4676.4,3.661]
[1755094023939,2.556,4676.5,4676.4,3.66]
[1755094024107,2.6632,4676.5,4676.4,3.66]
[1755094024550,2.6632,4676.5,4675.9,0.001]
[1755094024722,2.6632,4676.5,4676.0,3.66]
[1755094024923,0.4396,4677.0,4676.1,0.02138534]
[1755094025249,0.1072,4676.6,4676.2,3.66]
[1755094025454,2.556,4677.0,4676.2,3.66]
[1755094025455,2.6632,4677.0,4676.4,0.1072]
[1755094025630,0.4396,4676.9,4676.5,3.66]
[1755094025824,0.1072,4676.6,4675.9,0.1082]
[1755094026025,2.556,4676.5,4676.3,0.001]
[1755094026533,0.1072,4676.6,4676.3,0.001]
[1755094026853,2.556,4676.4,4676.3,0.001]
[1755094027057,2.556,4676.4,4676.3,3.661]
[1755094027748,0.002,4677.4,4676.3,3.661]
[1755094027749,0.4396,4677.0,4676.3,3.661]
[1755094028045,0.4396,4677.0,4676.4,0.02138397]
[1755094028346,2.1164,4677.1,4676.3,3.78958442]
[1755094028546,2.1164,4677.1,4676.3,5.44264817]
[1755094028748,0.002,4677.4,4676.8,0.1072]
[1755094029319,2.1164,4677.3,4676.9,3.66]
[1755094029626,2.556,4677.2,4676.8,0.1072]
[1755094029945,2.556,4677.1,4676.9,3.66]
[1755094030158,0.1072,4677.2,4676.9,3.66]
[1755094030449,2.556,4677.0,4676.6,0.1072]
[1755094030636,2.556,4676.9,4676.7,3.66]
[1755094030840,2.556,4676.9,4675.9,0.001]
[1755094030841,0.46575072,4676.8,4675.9,0.001]
[1755094031179,0.13335072,4676.7,4675.1,0.02]
[1755094031324,0.02615072,4676.7,4673.9,0.1072]
[1755094031510,2.556,4676.6,4675.0,5.121]
[1755094031716,0.46575072,4676.5,4675.1,5.121]
[1755094031930,2.1164,4676.4,4675.1,5.121]
[1755094032129,0.46575072,4676.3,4675.1,5.121]
[1755094032328,2.1164,4676.2,4675.2,3.659]
[1755094032537,0.4396,4676.1,4675.2,3.659]
[1755094032722,2.1164,4676.0,4675.2,3.659]
[1755094033048,0.4396,4675.9,4675.2,3.659]
[1755094033344,0.4396,4675.9,4675.3,0.021389]
[1755094033547,0.4396,4675.9,4674.1,0.4592]
[1755094033750,2.1164,4675.8,4674.3,0.11139025]
[1755094033946,0.46575072,4675.7,4674.3,0.11139025]
[1755094034256,2.31232517,4675.6,4674.4,3.659]
[1755094034457,0.19592517,4675.5,4674.5,0.02139266]
[1755094034756,0.19592517,4675.4,4674.5,0.38117829]
[1755094035059,0.19592517,4675.3,4674.5,0.38117829]
[1755094035224,0.19592517,4675.2,4674.5,0.38117829]
[1755094035428,0.45243383,4678.2,4674.5,0.38117829]
[1755094035429,0.19433924,4675.1,4674.5,0.38197829]
[1755094035642,2.556,4676.2,4674.5,0.38197829]
[1755094035947,2.556,4676.2,4674.5,0.0008]
[1755094036549,2.556,4676.2,4674.6,3.659]
[1755094036550,0.4396,4676.1,4674.6,3.659]
[1755094037048,2.1164,4676.0,4674.6,3.659]
[1755094037572,2.1164,4676.0,4674.5,0.0008]
[1755094037745,2.1164,4676.0,4674.7,3.659]
[1755094037933,2.1164,4676.0,4674.7,5.86286771]
[1755094038345,2.556,4676.6,4674.7,5.86286771]
[1755094038976,0.46575072,4676.5,4674.7,2.20386771]
[1755094039194,2.1164,4676.4,4674.8,3.659]
[1755094039775,2.1164,4676.4,4674.9,3.659]
[1755094040077,2.1164,4676.4,4674.9,4.13681927]
[1755094040857,0.46575072,4676.3,4674.9,0.47781927]
[1755094041057,2.1164,4676.2,4675.0,3.659]
[1755094041247,0.4396,4676.1,4674.9,0.0008]
[1755094041574,0.4396,4676.1,4675.9,5.122]
[1755094041778,2.556,4676.0,4675.9,5.122]
[1755094041950,2.6632,4676.0,4675.9,8.781]
[1755094043156,2.6632,4676.0,4675.9,8.78]
[1755094043491,2.6632,4676.0,4675.9,5.122]
[1755094043646,2.6632,4676.0,4675.9,8.78]
[1755094043990,2.6632,4676.0,4675.9,5.122]
[1755094044144,2.6632,4676.0,4673.6,0.001]
[1755094044344,0.1072,4675.1,4673.6,0.001]
[1755094044580,0.1072,4674.2,4673.6,0.001]
[1755094044780,2.6632,4674.2,4673.6,0.001]
[1755094044988,0.1072,4673.7,4673.6,0.001]
[1755094045372,2.6632,4673.7,4673.6,3.659]
[1755094046368,2.6632,4673.7,4673.6,0.0018]
[1755094046588,2.6632,4673.7,4673.6,3.6598]
[1755094046794,2.6632,4673.7,4673.6,3.6608]
[1755094047201,17.1632,4673.7,4673.6,3.6608]
[1755094047494,17.1632,4673.7,4673.6,3.6598]
[1755094048391,17.1632,4673.7,4673.6,0.0018]
[1755094048562,17.1632,4673.7,4673.6,3.6598]
[1755094048982,17.1632,4673.7,4673.6,0.0018]
[1755094049184,17.35879487,4673.7,4673.6,3.6598]
[1755094049498,17.1632,4673.7,4673.1,0.021]
[1755094049702,0.1072,4673.4,4673.1,0.021]
[1755094049863,0.32897445,4673.4,4673.1,0.021]
[1755094050063,17.26322373,4673.4,4673.1,0.021]
[1755094050702,17.26322373,4673.4,4673.3,3.659]
[1755094050888,16.6194,4673.4,4673.3,3.659]
[1755094051098,14.5,4673.4,4673.3,3.659]
[1755094051409,14.6072,4673.4,4673.3,3.659]
[1755094051583,14.6072,4673.4,4673.3,11.447]
[1755094052480,14.6072,4673.4,4673.3,8.783]
[1755094053195,14.6072,4673.4,4673.3,3.659]
[1755094053402,14.6072,4673.4,4673.3,4.6414]
[1755094053609,14.6072,4673.4,4673.3,6.4744]
[1755094053792,0.1072,4673.9,4673.3,6.5816]
[1755094053994,0.1072,4673.9,4673.4,0.431]
[1755094054194,14.5,4673.8,4673.5,2.264]
[1755094054391,0.1072,4673.9,4673.6,0.45239678]
[1755094054791,0.1072,4673.9,4673.7,1.833]
[1755094054984,14.5,4674.7,4673.8,0.12859586]
[1755094055180,14.5,4674.7,4674.3,0.1072]
[1755094055380,14.5,4674.7,4674.4,5.921]
[1755094055581,14.5,4674.7,4674.4,4.088]
[1755094055804,14.5,4674.7,4674.5,0.431]
[1755094056011,0.1072,4675.0,4674.5,2.264]
[1755094056181,0.1072,4675.6,4674.9,0.1072]
[1755094056587,14.5,4675.5,4675.0,3.656]
[1755094056806,0.1072,4675.3,4675.0,3.656]
[1755094057113,0.1072,4675.3,4675.0,4.087]
[1755094057315,0.1072,4675.3,4675.0,3.656]
[1755094057483,14.5,4675.2,4675.0,3.656]
[1755094057811,14.5,4675.2,4675.1,2.69440113]
[1755094058013,14.5,4675.2,4675.1,3.05356037]
[1755094058205,14.5,4675.2,4675.1,3.7632]
[1755094058402,14.5,4675.2,4675.1,3.656]
[1755094059397,14.5,4675.2,4674.4,0.431]
[1755094059599,0.1072,4674.8,4674.5,3.655]
[1755094060687,0.002,4676.0,4674.6,2.92484258]
[1755094060886,0.002,4676.0,4675.2,18.26748682]
[1755094061211,0.002,4676.0,4675.8,0.1072]
[1755094061516,0.002,4676.0,4675.9,7.788]
[1755094062286,0.002,4676.0,4675.9,11.442]
[1755094062520,0.1092,4676.0,4675.9,11.442]
[1755094062719,0.1092,4676.0,4675.9,8.778]
[1755094063415,0.1092,4676.0,4675.9,3.654]
[1755094063618,2.5696,4676.0,4675.9,3.654]
[1755094064003,16.6214,4676.0,4675.9,3.654]
[1755094064404,17.0696,4676.0,4675.9,3.654]
[1755094064922,17.0696,4676.0,4674.5,0.0008]
[1755094065121,0.1072,4675.4,4674.7,0.1072]
[1755094065591,14.5,4674.8,4674.7,0.1072]
[1755094065786,14.4992,4674.8,4674.7,0.9574]
[1755094065995,14.4992,4674.8,4674.7,2.684]
[1755094066431,0.1072,4675.6,4674.7,2.684]
[1755094066588,0.1072,4675.6,4674.7,2.253]
[1755094066786,0.1072,4675.6,4674.8,0.431]
[1755094067024,0.002,4676.0,4674.9,0.6337]
[1755094067244,0.1092,4676.0,4675.3,0.1072]
[1755094067554,14.5,4675.9,4675.4,4.10438854]
[1755094067720,14.5,4675.9,4675.6,0.1072]
[1755094067921,14.5,4675.9,4674.9,1.0647]
[1755094068110,14.5,4675.9,4675.3,0.1072]
[1755094068311,0.1072,4675.8,4674.7,0.42]
[1755094068510,0.1072,4675.8,4675.0,0.1072]
[1755094071165,0.1072,4675.8,4675.0,0.108]
[1755094071320,0.1072,4675.8,4675.0,0.56902]
[1755094071519,0.1072,4675.8,4675.7,5.123]
[1755094071720,14.6072,4675.8,4675.7,8.773]
[1755094072547,14.5,4675.8,4675.7,9.3112]
[1755094073118,0.002,4676.0,4675.7,9.3112]
[1755094073317,0.002,4676.0,4675.9,0.1072]
[1755094073749,0.002,4676.0,4675.9,2.264]
[1755094076342,0.002,4676.0,4675.9,2.2648]
[1755094076940,0.002,4676.0,4675.9,0.539]
[1755094077577,0.002,4676.0,4675.9,0.108]
[1755094077756,0.002,4676.0,4675.9,3.755]
[1755094077957,0.0012,4676.0,4675.9,3.755]
[1755094080758,2.508,4676.0,4675.9,3.6468]
[1755094081252,14.5012,4676.0,4675.9,3.6468]
[1755094081465,14.5012,4676.0,4675.9,11.4318]
[1755094081978,0.0012,4676.0,4675.9,12.19515]
[1755094082164,0.0012,4676.0,4675.9,30.46263682]
[1755094082365,0.0012,4676.0,4675.9,25.34063682]
[1755094082541,0.002,4676.3,4675.9,25.63756915]
[1755094082747,0.002,4676.3,4676.0,4.63478801]
[1755094082947,0.002,4676.3,4676.2,0.1072]
[1755094083375,0.002,4676.3,4676.2,2.2385]
[1755094084288,0.002,4676.3,4676.2,3.7512]
[1755094084457,0.002,4676.3,4676.2,0.1072]
[1755094084643,0.002,4676.3,4676.2,3.7512]
[1755094085048,0.002,4676.3,4676.2,5.14665886]
[1755094085349,0.002,4676.3,4676.2,3.7512]
[1755094085550,2.5088,4676.3,4676.2,3.7512]
[1755094086095,14.502,4676.3,4676.2,3.7512]
[1755094086245,16.5428,4676.3,4676.2,3.7512]
[1755094086449,17.0088,4676.3,4676.2,3.643]
[1755094087679,14.502,4676.3,4676.2,3.643]
[1755094087985,16.5428,4676.3,4676.2,3.643]
[1755094088185,17.0088,4676.3,4676.2,3.6438]
[1755094088678,17.0088,4676.3,4676.2,0.0008]
[1755094088982,17.116,4676.3,4676.2,3.6428]
[1755094089554,17.116,4676.3,4676.2,0.0008]
[1755094089783,17.116,4676.3,4676.2,3.6428]
[1755094089967,17.1152,4676.3,4676.2,3.6428]
[1755094091466,14.5012,4676.3,4676.2,11.4278]
[1755094092095,17.008,4676.3,4676.2,7.7858]
[1755094092280,17.008,4676.3,4674.8,0.001]
[1755094092488,0.1072,4675.8,4675.3,0.1072]
[1755094092658,2.5068,4675.7,4675.3,0.1072]
[1755094092857,14.5,4675.4,4675.3,0.1072]
[1755094093368,17.0068,4675.4,4675.3,0.1072]
[1755094093570,17.0068,4675.4,4675.3,3.7472]
[1755094094587,14.5,4675.4,4675.3,3.7472]
[1755094095480,14.5,4675.4,4675.3,3.748]
[1755094096295,0.0012,4676.3,4675.3,4.57163908]
[1755094096594,2.042,4676.3,4676.2,0.1072]
[1755094096778,17.008,4676.3,4676.2,3.7462]
[1755094097172,17.008,4676.3,4676.2,3.639]
[1755094097375,17.1152,4676.3,4676.2,3.639]
[1755094098985,16.6492,4676.3,4676.2,3.639]
[1755094100184,14.5012,4676.3,4676.2,3.639]
[1755094100564,14.5012,4676.3,4676.2,3.7462]
[1755094100890,14.5012,4676.3,4676.2,3.747]
[1755094101421,0.0012,4676.3,4676.2,15.29015626]
[1755094101621,0.0012,4676.3,4676.2,15.93045526]
[1755094102885,0.0012,4676.3,4676.2,14.24505526]
[1755094103089,0.0012,4676.3,4676.2,13.26645526]
[1755094103931,0.0012,4676.3,4676.2,8.14345526]
[1755094105527,0.0012,4676.3,4676.2,6.45805526]
[1755094106011,0.0012,4676.3,4676.2,8.09635526]
[1755094107324,14.502,4677.3,4676.2,8.09635526]
[1755094107629,14.502,4677.3,4676.7,0.1072]
[1755094107829,14.502,4677.3,4676.7,3.7402]
[1755094107999,14.502,4677.3,4676.7,3.741]
[1755094108697,14.502,4677.3,4676.7,4.1877]
[1755094109132,14.502,4677.3,4676.7,3.741]
[1755094109320,14.502,4677.3,4676.7,4.19907438]
[1755094110346,0.002,4677.3,4676.7,4.66977438]
[1755094110514,0.002,4677.3,4676.7,6.29777438]
[1755094111150,0.002,4677.3,4677.2,0.1072]
[1755094111345,0.002,4677.3,4677.2,3.7382]
[1755094111545,0.002,4677.3,4677.2,14.20672821]
[1755094111746,0.002,4677.3,4677.2,12.10802821]
[1755094111953,0.002,4677.3,4677.2,12.19337721]
[1755094112250,0.002,4677.3,4677.2,12.66407721]
[1755094112564,0.002,4677.3,4677.2,12.19337721]
[1755094112718,0.002,4677.3,4677.2,35.64982087]
[1755094113351,0.002,4677.3,4677.2,35.64882087]
[1755094113520,0.002,4677.3,4677.2,29.35582087]
[1755094113721,0.002,4677.3,4677.2,32.39999266]
[1755094114148,0.002,4677.3,4677.2,27.27979266]
[1755094114653,0.002,4677.3,4677.2,23.64979266]
[1755094114853,0.002,4677.3,4677.2,27.27879266]
[1755094115518,0.4618,4677.3,4677.2,0.193349]
[1755094115848,2.4398,4677.3,4677.2,3.6288]
[1755094116780,2.4398,4677.3,4676.5,0.4618]
[1755094116959,0.4618,4677.2,4676.1,0.001]
[1755094117148,0.4618,4677.2,4676.2,3.627]
[1755094117351,1.978,4677.1,4676.2,3.627]
[1755094117577,1.978,4677.1,4676.2,5.74119279]
[1755094117857,0.4618,4677.0,4676.2,3.627]
[1755094118049,1.978,4676.9,4676.3,3.627]
[1755094118283,0.4618,4676.8,4676.3,3.627]
[1755094118466,2.4398,4676.7,4676.3,3.627]
[1755094118675,0.01668443,4677.4,4676.3,3.627]
[1755094118980,2.4398,4676.6,4676.3,3.627]
[1755094119180,0.4618,4676.5,4676.3,3.627]
[1755094119383,0.01668443,4677.4,4676.3,3.627]
[1755094119588,1.978,4676.4,4676.3,3.627]
[1755094119891,0.4618,4676.9,4676.3,3.9898]
[1755094120458,0.01668443,4677.4,4676.3,3.9898]
[1755094120655,0.01668443,4677.4,4676.4,3.626]
[1755094121153,2.4398,4677.3,4676.3,0.3628]
[1755094121353,2.4398,4677.3,4676.4,3.626]
[1755094121661,0.4618,4677.2,4677.1,5.121]
[1755094121863,2.4398,4677.2,4677.1,8.747]
[1755094122071,2.4398,4677.2,4677.1,8.746]
[1755094122676,2.4398,4677.2,4677.1,3.625]
[1755094123388,0.01668443,4677.4,4677.1,3.9875]
[1755094123690,0.01668443,4677.4,4677.3,23.45644366]
[1755094124797,0.002,4677.5,4677.3,18.62969224]
[1755094124999,39.809163,4678.3,4677.4,2.0987]
[1755094125224,39.809163,4678.3,4678.2,18.15899224]
[1755094125367,39.809163,4678.3,4678.2,21.78299224]
[1755094125564,39.809163,4678.3,4678.2,21.89099224]
[1755094126780,39.809163,4678.3,4678.2,0.108]
[1755094127106,42.248963,4678.3,4678.2,3.731]
[1755094127275,42.248963,4678.3,4678.2,3.6238]
[1755094127795,42.248163,4678.3,4678.2,3.6238]
[1755094128412,41.786363,4678.3,4678.2,3.6238]
[1755094128967,42.248163,4678.3,4678.2,3.6238]
[1755094129899,39.808363,4678.3,4678.2,3.6238]
[1755094130383,39.808363,4678.3,4678.2,5.80207922]
[1755094130585,39.808363,4678.3,4678.2,5.80007922]
[1755094130891,39.808363,4678.3,4678.2,3.6218]
[1755094131092,42.248163,4678.3,4678.2,3.6208]
[1755094131562,42.248163,4678.3,4678.2,11.4028]
[1755094132041,39.808363,4678.3,4678.2,11.4028]
[1755094135265,39.808363,4678.3,4678.2,8.7388]
[1755094136072,39.808363,4678.3,4678.2,3.6178]
[1755094136256,39.808363,4678.3,4678.2,0.0008]
[1755094136466,39.808363,4678.3,4678.2,3.6178]
[1755094137369,39.808363,4678.3,4678.2,3.725]
[1755094137689,39.808363,4678.3,4678.2,0.108]
[1755094137889,42.248163,4678.3,4678.2,3.724]
[1755094138366,41.786363,4678.3,4678.2,3.724]
[1755094138562,41.786363,4678.3,4678.2,3.6168]
[1755094139001,39.808363,4678.3,4678.2,3.6168]
[1755094139360,22.74309189,4678.3,4678.2,3.6168]
[1755094139664,22.74309189,4678.3,4678.2,8.17230791]
[1755094140183,22.74309189,4678.3,4678.2,5.52392869]
[1755094140637,22.74309189,4678.3,4678.2,3.6168]
[1755094141455,22.74309189,4678.3,4678.2,11.3988]
[1755094142791,22.74309189,4678.3,4678.2,8.7368]
[1755094143363,22.74309189,4678.3,4678.2,4.0623]
[1755094143556,22.74309189,4678.3,4678.2,5.32347602]
[1755094143760,22.74309189,4678.3,4678.2,3.6168]
[1755094144762,9.01370065,4678.3,4678.2,27.50345506]
[1755094145477,9.01290065,4678.3,4678.2,27.05795506]
[1755094145975,0.002,4678.8,4678.2,31.24520988]
[1755094146294,0.002,4678.9,4678.5,1.90712869]
[1755094146586,0.002,4678.9,4678.6,3.612]
[1755094147189,0.002,4678.9,4678.6,4.0575]
[1755094147394,0.002,4678.9,4678.6,4.252001]
[1755094148696,0.002,4678.9,4678.8,0.1072]
[1755094148855,0.002,4678.9,4678.8,3.7172]
[1755094149390,0.002,4678.9,4678.8,4.34371297]
[1755094149760,0.002,4678.9,4678.8,0.73371297]
[1755094149958,0.002,4678.9,4678.8,3.7162]
[1755094151529,0.002,4678.9,4678.8,11.9417]
[1755094151811,0.002,4678.9,4678.8,11.9425]
[1755094152016,0.002,4678.9,4678.8,11.497]
[1755094153484,0.002,4678.9,4678.8,3.717]
[1755094156222,0.002,4678.9,4678.8,4.34341477]
[1755094157407,0.002,4678.9,4678.8,5.0722409]
[1755094157587,0.0012,4678.9,4678.8,4.78891477]
[1755094157794,0.0012,4678.9,4678.8,6.25522909]
[1755094158394,0.0012,4678.9,4678.8,6.25022909]
[1755094159202,0.022,4679.4,4678.8,6.6185409]
[1755094159404,0.022,4679.4,4679.3,0.1072]
[1755094159704,0.022,4679.4,4679.3,5.6225237]
[1755094159910,0.022,4679.4,4679.3,3.711]
[1755094160105,0.022,4679.4,4679.3,27.15215506]
[1755094160311,0.022,4679.4,4679.3,27.59765506]
[1755094160608,0.022,4679.4,4678.8,2.65442353]
[1755094160609,2.5124,4679.4,4678.8,2.65442353]
[1755094160929,0.4311,4679.3,4678.9,3.603]
[1755094161107,2.0593,4679.2,4679.0,3.602]
[1755094161307,0.4311,4679.1,4679.0,3.602]
[1755094161507,2.4904,4679.1,4679.0,11.381]
[1755094163595,2.4904,4679.1,4679.0,2.661]
[1755094163795,2.4904,4679.1,4679.0,11.38]
[1755094164341,2.4904,4679.1,4679.0,3.601]
[1755094164696,2.4904,4679.1,4678.1,0.001]
[1755094164934,0.02615072,4679.0,4678.1,0.001]
[1755094165237,0.45725072,4679.0,4678.1,0.001]
[1755094165738,2.0593,4678.9,4678.1,0.001]
[1755094165908,0.02615072,4678.8,4678.2,3.6]
[1755094166102,2.4904,4678.7,4678.2,3.6]
[1755094166328,0.022,4679.4,4678.2,3.6]
[1755094166329,0.04815072,4679.4,4678.2,3.6]
[1755094166540,2.4904,4679.2,4678.3,0.28332613]
[1755094166827,2.4904,4679.2,4678.4,0.02137482]
[1755094167140,14.5,4679.1,4678.5,3.88332613]
[1755094167600,0.022,4679.4,4679.0,23.44115506]
[1755094167799,0.022,4679.4,4679.1,3.90469776]
[1755094167995,0.022,4679.4,4679.1,7.29195888]
[1755094168220,0.022,4679.4,4679.2,3.599]
[1755094168595,0.022,4679.4,4679.3,0.4455]
[1755094169312,0.022,4679.4,4679.2,3.599]
[1755094170596,0.022,4679.4,4679.3,0.1072]
[1755094170803,14.522,4679.4,4679.3,0.1072]
[1755094171030,14.522,4679.4,4679.3,0.9799131]
[1755094171242,0.022,4679.4,4679.3,3.34360994]
[1755094171440,0.022,4679.4,4679.3,10.8189131]
[1755094172134,0.022,4679.4,4679.3,8.3218131]
[1755094172839,0.022,4679.4,4679.3,5.6608131]
[1755094173812,0.022,4679.4,4679.3,0.5418131]
[1755094174912,0.022,4679.4,4679.3,0.1072]
[1755094175116,14.522,4679.4,4679.3,0.1072]
[1755094175629,17.002,4679.4,4679.3,0.0008]
[1755094176406,17.002,4679.4,4679.3,3.594]
[1755094177354,17.002,4679.4,4678.8,0.001]
[1755094177557,17.002,4679.4,4678.9,3.594]
[1755094177558,2.48,4679.3,4678.9,3.594]
[1755094177755,0.4284,4679.2,4678.9,3.594]
[1755094177912,14.5,4679.0,4678.9,3.594]
[1755094178249,16.98,4679.0,4678.9,3.594]
[1755094179056,14.5,4679.0,4678.9,3.594]
[1755094179737,14.5,4679.0,4678.8,0.001]
[1755094179942,2.48,4678.9,4678.3,0.001]
[1755094180114,2.48,4678.9,4678.1,0.001]
[1755094180115,0.4284,4678.8,4678.4,3.592]
[1755094180333,14.5,4678.5,4677.3,0.001]
[1755094180540,0.02615072,4678.4,4677.3,0.001]
[1755094180841,2.50615072,4678.4,4677.7,0.0018]
[1755094181042,2.48,4678.4,4677.7,0.0018]
[1755094181347,14.5,4677.8,4677.7,0.0018]
[1755094181550,14.5,4677.8,4677.7,8.7128]
[1755094181841,16.98,4677.8,4677.7,8.7128]
[1755094182721,16.98,4677.8,4677.7,5.1208]
[1755094182940,16.98,4677.8,4677.7,8.7128]
[1755094184048,14.5,4677.8,4677.7,8.7128]
[1755094184346,2.0516,4678.9,4677.7,9.58318]
[1755094184661,0.45455072,4678.8,4678.6,5.12]
[1755094184812,0.4284,4678.8,4678.7,3.591]
[1755094185017,2.48,4678.8,4678.7,3.591]
[1755094185334,16.98,4678.8,4678.7,3.591]
[1755094185511,17.0872,4678.8,4678.7,3.591]
[1755094185713,14.6072,4678.8,4678.7,3.591]
[1755094185912,14.6072,4678.8,4678.7,3.5918]
[1755094187211,17.0872,4678.8,4678.7,0.0008]
[1755094187410,17.0872,4678.8,4678.7,3.5908]
[1755094187633,17.0872,4678.8,4678.7,0.0008]
[1755094187918,17.0872,4678.8,4678.7,3.5908]
[1755094188948,14.6072,4678.8,4678.7,3.5908]
[1755094189672,14.6072,4678.8,4678.7,0.0008]
[1755094189969,17.0872,4678.8,4678.7,3.589]
[1755094190274,17.0872,4678.8,4677.7,0.1082]
[1755094190418,2.48,4678.8,4677.8,3.589]
[1755094190613,0.1072,4678.3,4677.8,3.589]
[1755094190844,14.5,4678.0,4677.8,3.589]
[1755094191153,0.022,4679.4,4677.9,2.78042613]
[1755094191358,0.1072,4678.9,4678.4,0.1072]
[1755094191524,0.1072,4678.9,4678.8,5.12]
[1755094191751,14.6072,4678.9,4678.8,5.12]
[1755094191950,14.5,4678.9,4678.8,5.5581]
[1755094192170,14.5,4678.9,4678.8,8.53171]
[1755094192474,14.5,4678.9,4678.8,6.14181]
[1755094192674,14.5,4678.9,4678.8,5.2272]
[1755094193083,14.5,4678.9,4678.8,7.7243]
[1755094193754,14.5,4678.9,4678.8,2.6043]
[1755094194484,14.5,4678.9,4678.8,3.6932]
[1755094194872,0.022,4679.4,4678.8,3.6932]
[1755094195256,0.022,4679.4,4679.1,0.1072]
[1755094195453,14.5,4679.3,4679.2,3.586]
[1755094195888,14.4992,4679.3,4679.2,6.1903]
[1755094196092,14.4992,4679.3,4679.2,6.80933]
[1755094196788,14.4992,4679.3,4679.2,4.75113]
[1755094197257,14.4992,4679.3,4679.2,4.31303]
[1755094197462,14.4992,4679.3,4679.2,3.694]
[1755094199471,14.4992,4679.3,4679.2,4.1338]
[1755094199996,14.4992,4679.3,4679.2,3.694]
[1755094200194,14.4992,4679.3,4679.2,0.108]
[1755094200502,14.4992,4679.3,4679.2,3.691]
[1755094200994,14.4992,4679.3,4679.2,0.108]
[1755094201190,14.4992,4679.3,4679.2,3.69]
[1755094201591,14.4992,4679.3,4679.2,7.889]
[1755094201794,16.9979,4679.3,4679.2,11.3638]
[1755094202169,16.9979,4679.3,4679.2,7.7818]
[1755094202374,16.9979,4679.3,4679.2,8.7008]
[1755094202603,16.9979,4679.3,4679.2,5.1198]
[1755094202807,16.9979,4679.3,4679.2,3.5818]
[1755094203470,16.9979,4679.3,4677.7,0.001]
[1755094203674,0.1072,4677.9,4677.8,3.58]
[1755094203916,2.6059,4677.9,4677.8,3.58]
[1755094204209,2.6059,4677.9,4677.7,0.001]
[1755094204210,17.1059,4677.9,4677.7,0.001]
[1755094204511,2.4987,4677.8,4677.7,0.001]
[1755094204684,2.4987,4677.8,4677.7,3.581]
[1755094204869,0.1072,4677.9,4677.7,3.581]
[1755094205076,14.5,4677.8,4677.7,3.9393]
[1755094205290,14.5,4677.8,4677.7,4.3791]
[1755094205609,14.5,4677.8,4677.7,0.7991]
[1755094205796,14.5,4677.8,4677.7,3.5808]
[1755094205987,17.1059,4677.8,4677.7,3.5808]
[1755094206307,17.1059,4677.8,4677.7,0.0018]
[1755094206713,17.1059,4677.8,4677.7,3.5808]
[1755094206925,14.6072,4677.8,4677.7,3.5808]
[1755094207236,14.5,4677.8,4677.7,3.5808]
[1755094208115,14.5,4677.8,4677.7,4.3896]
[1755094208295,14.5,4677.8,4677.7,6.47]
[1755094208492,0.1072,4679.0,4677.7,6.47]
[1755094208728,0.1072,4679.0,4678.4,0.1072]
[1755094209034,14.5,4678.9,4678.5,3.578]
[1755094209395,14.5,4678.9,4678.5,4.0178]
[1755094209593,14.5,4678.9,4678.5,3.9905]
[1755094209812,14.5,4678.9,4678.7,0.1072]
[1755094210011,14.5,4678.9,4678.8,0.4398]